bitfinex-derivatives/quotes_ETHF0:USTF0_20250612
["timestamp","ask_amount","ask_price","bid_price","bid_amount"]
[1749710490212,0.72055,2775.1,2775.0,20.3528]
[1749710490407,2.52195,2775.1,2775.0,20.3508]
[1749710491002,8.60284,2775.1,2774.7,3.2078]
[1749710491207,0.72063,2774.8,2774.7,3.2078]
[1749710491612,5.72063,2774.8,2774.7,3.2078]
[1749710493914,0.72063,2774.8,2774.7,3.2078]
[1749710495217,0.72068,2774.6,2774.5,0.0054094]
[1749710495812,1.36768,2774.6,2774.5,0.0054094]
[1749710498020,4.57548,2774.6,2774.5,0.0054094]
[1749710498724,0.72084,2774.0,2773.9,3.2078]
[1749710498925,0.72084,2774.0,2773.9,20.3008]
[1749710499317,0.72084,2774.0,2773.9,21.02167]
[1749710499820,0.72084,2774.0,2773.9,20.3008]
[1749710500718,0.72084,2774.0,2773.9,20.2888]
[1749710501121,0.72084,2774.0,2773.9,20.2868]
[1749710501422,0.72084,2774.0,2773.9,3.2078]
[1749710501923,1.89524,2774.0,2773.9,3.2078]
[1749710502334,1.89524,2774.0,2773.9,20.2838]
[1749710503228,1.89524,2774.0,2773.9,3.2078]
[1749710503420,1.8022,2773.9,2772.7,0.72117]
[1749710503619,0.72117,2772.8,2772.6,1.2077]
[1749710503818,5.01036,2773.4,2772.6,1.2077]
[1749710503819,3.2078,2773.4,2772.7,40.8]
[1749710504021,3.2078,2773.4,2772.8,5.9004]
[1749710504319,0.0054094,2773.4,2772.8,5.9058094]
[1749710504531,0.0054094,2773.4,2772.9,0.72112]
[1749710504722,0.72106,2773.2,2773.0,0.7211]
[1749710504926,0.72106,2773.2,2773.1,0.5847]
[1749710506823,0.0054094,2773.4,2773.1,0.5847]
[1749710507228,0.0054094,2773.4,2773.0,0.7211]
[1749710507229,0.0054094,2773.4,2772.8,1.9509594]
[1749710507429,0.72104,2773.3,2772.9,21.789]
[1749710507624,0.72104,2773.3,2773.0,2.00439]
[1749710508027,0.72105,2773.2,2773.0,2.00439]
[1749710508228,0.72104,2773.3,2773.0,2.00439]
[1749710508830,0.72105,2773.2,2773.0,2.00439]
[1749710509030,0.0054094,2773.4,2773.0,4.4911]
[1749710509230,3.2078,2774.0,2773.4,0.72098]
[1749710509423,3.2078,2774.0,2773.5,19.5926]
[1749710509629,0.72094,2773.6,2773.5,19.5926]
[1749710509831,0.72089,2773.9,2773.5,19.5926]
[1749710510023,0.72087,2773.9,2773.7,0.72091]
[1749710510233,0.72087,2773.9,2773.5,19.5926]
[1749710510426,3.2078,2774.0,2773.7,0.72091]
[1749710510628,3.2078,2774.0,2773.8,6.67878]
[1749710510933,3.2078,2774.0,2773.8,6.67877]
[1749710511130,3.2078,2774.0,2773.9,0.72087]
[1749710511335,3.92864,2774.0,2773.9,1.2641]
[1749710512037,0.72084,2774.0,2773.9,1.2641]
[1749710512437,0.0054094,2774.1,2773.9,1.2641]
[1749710512637,0.7262194,2774.1,2774.0,17.7007]
[1749710513233,0.0054094,2774.1,2774.0,18.42154]
[1749710513434,0.0054094,2774.1,2774.0,19.68564]
[1749710513733,3.2078,2775.1,2774.1,1.802]
[1749710513934,3.2078,2775.8,2774.9,3.2078]
[1749710514139,3.2078,2776.8,2775.5,3.2078]
[1749710514335,3.2078,2776.5,2775.6,1.1937]
[1749710514541,0.7204,2775.7,2775.6,1.1937]
[1749710514741,0.72045,2775.5,2775.4,0.0054094]
[1749710515439,1.95095,2775.5,2775.4,0.0054094]
[1749710515941,6.95095,2775.5,2775.4,0.0054094]
[1749710518349,6.95095,2775.5,2775.4,9.4e-06]
[1749710521144,1.95095,2775.5,2775.4,9.4e-06]
[1749710521855,1.95095,2775.5,2775.4,4.6100094]
[1749710522354,0.72045,2775.5,2775.4,4.6100094]
[1749710523256,1.99605,2775.5,2775.4,9.4e-06]
[1749710524550,2.0580672,2775.5,2775.4,9.4e-06]
[1749710526549,7.0580672,2775.5,2775.4,9.4e-06]
[1749710527347,2.0580672,2775.5,2775.4,9.4e-06]
[1749710531353,2.0580672,2775.5,2775.4,4.6090094]
[1749710531556,2.0580672,2775.5,2775.4,9.4e-06]
[1749710531857,7.0580672,2775.5,2775.4,9.4e-06]
[1749710537163,2.0580672,2775.5,2775.4,9.4e-06]
[1749710539460,2.3462672,2775.5,2775.4,9.4e-06]
[1749710540961,1.0706672,2775.5,2775.4,9.4e-06]
[1749710542562,2.3543672,2775.5,2775.4,9.4e-06]
[1749710544558,3.54895979,2775.5,2775.4,9.4e-06]
[1749710547667,0.72066,2774.7,2774.6,4.577]
[1749710548072,1.80133,2775.2,2774.6,4.577]
[1749710548271,0.72064,2774.8,2774.7,0.72064]
[1749710548873,0.72064,2774.8,2774.7,5.72064]
[1749710549178,0.72064,2774.8,2774.7,5.0]
[1749710549474,0.72066,2774.7,2774.6,5.7866]
[1749710549773,0.72066,2774.7,2774.6,6.50728]
[1749710549977,0.72064,2774.8,2774.6,10.7866]
[1749710550181,0.72064,2774.8,2774.7,1.2096]
[1749710550876,0.72063,2774.8,2774.7,6.93024]
[1749710551272,0.72063,2774.8,2774.7,6.2096]
[1749710552476,0.72063,2774.8,2774.7,1.2096]
[1749710552879,0.72063,2774.8,2774.7,22.7766]
[1749710553283,0.72068,2774.6,2774.5,0.6237094]
[1749710553477,0.72068,2774.6,2774.5,1.8696094]
[1749710553678,0.72068,2774.6,2774.5,0.6237094]
[1749710554182,0.72068,2774.6,2774.5,2.6035194]
[1749710554481,0.72068,2774.6,2774.5,1.8828094]
[1749710555478,0.72068,2774.6,2774.5,22.1967094]
[1749710556385,0.72068,2774.6,2774.5,0.6237094]
[1749710556679,0.72068,2774.6,2774.5,0.0054094]
[1749710558085,1.00898,2774.6,2774.5,0.0054094]
[1749710559682,2.2038765,2774.6,2774.5,9.4e-06]
[1749710559882,4.11386134,2774.6,2774.5,9.4e-06]
[1749710560288,9.11386134,2774.6,2774.5,9.4e-06]
[1749710562384,13.69086134,2774.6,2774.5,9.4e-06]
[1749710562585,8.69186134,2774.6,2774.5,9.4e-06]
[1749710563989,13.69186134,2774.6,2774.5,9.4e-06]
[1749710564191,0.72094,2773.6,2773.5,0.5867]
[1749710564385,0.72094,2773.6,2773.5,5.1647]
[1749710565083,0.72094,2773.6,2773.5,4.578]
[1749710565287,0.72099,2773.4,2773.3,4.5834094]
[1749710565486,0.72099,2773.4,2773.3,16.9914094]
[1749710565686,0.72099,2773.4,2773.3,0.0054094]
[1749710566093,0.72096,2773.6,2773.3,5.0054094]
[1749710566393,3.2132094,2773.8,2773.5,0.72097]
[1749710566586,0.72093,2773.7,2773.6,6.5097]
[1749710568085,0.72093,2773.7,2773.6,22.2017]
[1749710571893,0.72093,2773.7,2773.6,21.542]
[1749710572095,0.72099,2773.4,2773.3,0.5938094]
[1749710572290,0.72099,2773.4,2773.3,22.1248094]
[1749710572496,0.72099,2773.4,2773.3,22.1278094]
[1749710572794,0.72099,2773.4,2773.3,22.1288094]
[1749710573892,0.0620172,2773.6,2773.5,0.72097]
[1749710574090,0.72097,2773.5,2773.3,24.0900194]
[1749710575392,0.72099,2773.4,2773.3,23.3690094]
[1749710575594,0.72099,2773.4,2773.3,22.1288094]
[1749710575896,0.72099,2773.4,2773.3,5.1718094]
[1749710576096,0.72099,2773.4,2773.3,22.1218094]
[1749710576492,0.72099,2773.4,2773.3,0.5938094]
[1749710576689,0.72099,2773.4,2773.3,0.0054094]
[1749710576898,3.92879,2773.4,2773.3,16.9484094]
[1749710577399,5.10119,2773.4,2773.3,16.9484094]
[1749710582102,1.89339,2773.4,2773.3,16.9484094]
[1749710582303,0.72099,2773.4,2773.3,16.9484094]
[1749710582500,0.5408,2773.5,2773.3,17.6693994]
[1749710582702,0.72098,2773.4,2773.3,16.9484094]
[1749710584007,0.5408,2773.5,2773.3,16.9484094]
[1749710584200,0.5408,2773.5,2773.4,4.527]
[1749710584400,0.5408,2773.5,2773.4,5.7448]
[1749710584602,1.26176,2773.5,2773.4,5.7448]
[1749710584804,0.5408,2773.5,2773.4,5.7448]
[1749710585111,0.5408,2773.5,2773.4,11.46579]
[1749710585998,0.5408,2773.5,2773.4,6.2178]
[1749710586209,0.8292,2773.5,2773.4,28.37879]
[1749710586402,0.8292,2773.5,2773.4,27.6578]
[1749710587107,0.8292,2773.5,2773.4,28.37879]
[1749710589907,0.8292,2773.5,2773.4,10.7448]
[1749710590114,1.55016,2773.5,2773.4,1.2178]
[1749710590315,1.55016,2773.5,2773.4,21.413]
[1749710590918,1.55016,2773.5,2773.4,21.414]
[1749710591913,0.72099,2773.4,2773.3,0.6186094]
[1749710592113,0.72099,2773.4,2773.3,22.0326094]
[1749710592622,0.0620172,2773.4,2773.3,22.0326094]
[1749710592821,0.0620172,2773.4,2773.3,22.7536194]
[1749710593819,0.7830072,2773.4,2773.3,21.4194094]
[1749710594423,0.0620172,2773.4,2773.3,21.4194094]
[1749710594632,0.7830072,2773.4,2773.3,21.4194094]
[1749710595123,0.0620172,2773.4,2773.3,21.4194094]
[1749710595327,0.7830072,2773.4,2773.3,21.3954094]
[1749710595518,0.0620172,2773.4,2773.3,21.3954094]
[1749710595720,0.7830072,2773.4,2773.3,4.5314094]
[1749710595919,0.7830072,2773.4,2773.3,21.3924094]
[1749710596721,0.7830072,2773.4,2773.3,0.0054094]
[1749710597026,0.7830072,2773.4,2773.3,21.3854094]
[1749710597225,0.0620172,2773.4,2773.3,21.3854094]
[1749710597526,0.7830072,2773.4,2773.3,21.3854094]
[1749710598423,0.7830072,2773.4,2773.3,0.0054094]
[1749710598725,0.7830072,2773.4,2773.3,21.3854094]
[1749710598726,2.0592072,2773.4,2773.3,21.3854094]
[1749710598930,0.0620172,2773.4,2773.3,22.1064194]
[1749710599926,0.0620172,2773.4,2773.3,21.3854094]
[1749710600628,0.7830072,2773.4,2773.3,21.3854094]
[1749710600830,0.0620172,2773.4,2773.3,21.3854094]
[1749710601029,0.0620172,2773.4,2773.3,22.1064194]
[1749710601222,0.0620172,2773.4,2773.3,23.3614194]
[1749710601423,0.0620172,2773.4,2773.3,24.0058194]
[1749710602026,0.0620172,2773.4,2773.3,29.0058194]
[1749710602431,0.0620172,2773.4,2773.3,24.0058194]
[1749710603520,0.0620172,2773.4,2773.3,22.7508194]
[1749710603925,0.0054094,2773.8,2773.4,0.72099]
[1749710604123,0.0054094,2773.8,2773.7,0.72091]
[1749710604328,0.0054094,2773.8,2773.7,21.99591]
[1749710605931,0.0054094,2773.8,2773.7,21.275]
[1749710606435,0.0054094,2773.8,2773.7,21.99591]
[1749710607137,0.0054094,2773.8,2773.7,21.275]
[1749710607633,0.0054094,2773.8,2773.7,21.99591]
[1749710607933,0.0054094,2773.8,2773.7,21.275]
[1749710608334,0.0054094,2773.8,2773.7,21.99591]
[1749710609640,0.0054094,2773.8,2773.7,23.28261]
[1749710609943,0.0054094,2773.8,2773.7,64.08261]
[1749710610330,1.2161,2774.3,2773.7,68.3617]
[1749710610533,1.2161,2774.3,2774.1,0.72078]
[1749710610837,1.2161,2774.3,2773.9,3.2078]
[1749710611039,0.7208,2774.1,2774.0,21.249]
[1749710612639,0.7208,2774.1,2773.8,3.92868]
[1749710612841,3.23973,2774.0,2773.9,21.249]
[1749710613139,2.5189,2774.0,2773.9,21.249]
[1749710613438,2.5189,2774.0,2773.9,24.4568]
[1749710614236,0.0054094,2774.3,2774.0,0.72082]
[1749710614437,0.7261594,2774.3,2774.0,0.72081]
[1749710614842,0.0620172,2774.1,2774.0,0.72081]
[1749710615138,0.0620172,2774.1,2774.0,5.72081]
[1749710615440,1.2643,2775.1,2774.1,1.80201]
[1749710615636,1.2643,2775.1,2774.6,0.72067]
[1749710615837,0.6004,2775.0,2774.7,21.273]
[1749710616043,1.2643,2774.9,2774.7,21.273]
[1749710616234,1.2643,2774.9,2774.7,21.99363]
[1749710618746,1.2643,2774.9,2774.7,21.99364]
[1749710619142,1.2643,2774.9,2774.8,3.2078]
[1749710619542,1.2643,2774.9,2774.8,3.92842]
[1749710619845,1.2643,2774.9,2774.8,3.48836147]
[1749710620045,1.9849,2774.9,2774.8,3.2078]
[1749710620449,1.2643,2774.9,2774.8,3.2078]
[1749710620648,1.9849,2774.9,2774.8,24.4638]
[1749710623352,1.9849,2774.9,2774.8,7.6578]
[1749710623550,1.9849,2774.9,2774.8,24.4528]
[1749710623743,1.9849,2774.9,2774.8,3.2078]
[1749710623946,1.9849,2774.9,2774.8,21.244]
[1749710624450,1.9849,2774.9,2774.8,4.45]
[1749710624651,1.9849,2774.9,2774.8,21.244]
[1749710624850,0.72067,2774.6,2774.5,0.0054094]
[1749710625054,0.72067,2774.6,2774.5,4.4554094]
[1749710625254,0.72067,2774.6,2774.5,0.0054094]
[1749710625455,0.72067,2774.6,2774.5,21.2494094]
[1749710625754,0.72067,2774.6,2774.5,0.0054094]
[1749710625957,1.95247,2774.6,2774.5,21.2494094]
[1749710626250,1.95247,2774.6,2774.5,0.0054094]
[1749710626556,6.95247,2774.6,2774.5,0.0054094]
[1749710626751,6.95247,2774.6,2774.5,16.7994094]
[1749710627054,6.95247,2774.6,2774.5,0.0054094]
[1749710627252,0.72073,2774.4,2774.3,4.45]
[1749710627453,3.2078,2774.5,2774.3,21.244]
[1749710627656,1.91903,2774.4,2774.3,21.244]
[1749710630458,1.1983,2774.4,2774.3,21.244]
[1749710630658,1.8051,2774.4,2774.3,21.244]
[1749710631056,2.52583,2774.4,2774.3,21.244]
[1749710631357,1.8051,2774.4,2774.3,21.244]
[1749710631546,1.8051,2774.4,2774.3,21.96475]
[1749710631750,0.6068,2774.4,2774.3,21.96475]
[1749710631952,0.0620172,2774.6,2774.3,21.244]
[1749710632152,0.0620172,2774.6,2774.5,0.7207]
[1749710632353,0.0620172,2774.6,2774.4,3.2078]
[1749710632754,0.0620172,2774.6,2774.4,3.92852]
[1749710632954,0.7826872,2774.6,2774.4,3.92852]
[1749710633357,0.0620172,2774.6,2774.4,3.92852]
[1749710633962,0.0620172,2774.6,2774.4,3.92851]
[1749710634464,0.0620172,2774.6,2774.5,0.7207]
[1749710634664,0.0620172,2774.6,2774.4,3.92851]
[1749710634855,0.0620172,2774.6,2774.5,0.7207]
[1749710636257,0.0620172,2774.6,2774.4,3.2078]
[1749710636462,0.7826972,2774.6,2774.5,21.229]
[1749710636662,0.7207,2774.5,2774.4,3.2078]
[1749710636861,1.3567,2774.5,2774.4,24.4368]
[1749710637064,0.636,2774.5,2774.4,24.4368]
[1749710637671,1.8778,2774.5,2774.4,24.4368]
[1749710638068,0.0620172,2774.6,2774.5,0.7207]
[1749710638674,0.0620172,2774.6,2774.5,1.3536]
[1749710640671,0.0620172,2774.6,2774.5,3.1284]
[1749710640874,0.0620172,2774.6,2774.5,43.9284]
[1749710641673,0.0054094,2775.1,2775.0,0.72057]
[1749710641866,0.0054094,2775.1,2775.0,21.94757]
[1749710642270,0.0054094,2775.1,2775.0,25.15537]
[1749710646870,1.2798,2775.9,2775.7,0.72038]
[1749710647066,0.6457,2775.8,2775.7,0.72038]
[1749710647270,0.6457,2775.8,2775.7,21.94438]
[1749710647675,0.5939,2776.1,2776.0,0.72031]
[1749710648974,1.3142,2776.1,2776.0,21.224]
[1749710649172,1.8742,2776.1,2775.9,3.92814]
[1749710649374,2.59451,2776.1,2776.0,21.224]
[1749710649579,2.59451,2776.1,2775.9,3.2078]
[1749710649775,2.59451,2776.1,2776.0,21.224]
[1749710649975,1.8742,2776.1,2776.0,21.224]
[1749710650276,0.0054094,2776.3,2775.9,3.2078]
[1749710650579,0.0054094,2776.3,2775.9,3.92813]
[1749710650883,1.2857094,2776.3,2776.0,62.022]
[1749710651175,2.0059594,2776.3,2776.1,21.222]
[1749710651376,1.2857094,2776.3,2776.1,21.222]
[1749710651680,0.72026,2776.2,2776.1,21.222]
[1749710651974,0.72029,2776.1,2776.0,40.8]
[1749710652174,1.90339,2776.1,2776.0,21.221]
[1749710652881,0.72034,2775.9,2775.8,0.0054094]
[1749710653078,0.72034,2775.9,2775.8,21.2254094]
[1749710653282,3.92814,2775.9,2775.8,4.4394094]
[1749710653680,3.92814,2775.9,2775.8,0.0054094]
[1749710653875,3.92814,2775.9,2775.8,16.7914094]
[1749710654878,3.92814,2775.9,2775.8,0.0054094]
[1749710655078,8.92814,2775.9,2775.8,16.7914094]
[1749710655677,8.92814,2775.9,2775.8,0.0054094]
[1749710655879,0.72037,2775.8,2775.7,4.434]
[1749710656078,2.61607,2775.8,2775.7,21.22]
[1749710656677,0.72042,2775.6,2775.5,3.2078]
[1749710656892,0.72047,2775.4,2775.3,0.0054094]
[1749710657085,0.72047,2775.4,2775.3,4.4394094]
[1749710657383,0.72047,2775.4,2775.3,21.2254094]
[1749710657582,1.98357,2775.4,2775.3,21.2254094]
[1749710659082,2.60587,2775.4,2775.3,21.2254094]
[1749710659281,0.72047,2775.4,2775.3,21.2264094]
[1749710659785,1.98357,2775.4,2775.3,21.2264094]
[1749710660379,1.98357,2775.4,2775.3,0.0054094]
[1749710660582,0.7206,2774.9,2774.8,29.4278]
[1749710660976,0.7206,2774.9,2774.8,46.2148]
[1749710661278,0.7206,2774.9,2774.8,29.4278]
[1749710661485,0.7206,2774.9,2774.8,21.221]
[1749710661681,0.72065,2774.7,2774.6,0.0054094]
[1749710661880,0.72065,2774.7,2774.6,21.2274094]
[1749710662081,0.72065,2774.7,2774.6,0.0054094]
[1749710662286,0.72065,2774.7,2774.6,21.2274094]
[1749710664183,0.72065,2774.7,2774.6,4.4394094]
[1749710664486,0.72065,2774.7,2774.6,21.2274094]
[1749710669486,0.72065,2774.7,2774.6,0.0054094]
[1749710669882,5.72065,2774.7,2774.6,0.0054094]
[1749710670089,0.72075,2774.3,2774.2,7.6408]
[1749710670290,0.72075,2774.3,2774.2,24.4298]
[1749710671294,1.96835,2774.3,2774.2,24.4298]
[1749710672483,1.96835,2774.3,2774.2,24.4318]
[1749710673690,1.96835,2774.3,2774.2,4.434]
[1749710673889,1.96835,2774.3,2774.2,21.224]
[1749710674284,1.96835,2774.3,2774.2,4.434]
[1749710674486,1.96835,2774.3,2774.2,21.224]
[1749710674698,0.72081,2774.1,2774.0,0.0054094]
[1749710674890,0.72081,2774.1,2774.0,21.2304094]
[1749710676297,0.72081,2774.1,2774.0,4.4394094]
[1749710676497,0.72081,2774.1,2774.0,21.2304094]
[1749710677396,0.72081,2774.1,2774.0,0.0054094]
[1749710677596,0.72081,2774.1,2774.0,21.2314094]
[1749710678492,0.72081,2774.1,2774.0,0.0054094]
[1749710678697,0.72081,2774.1,2774.0,16.7974094]
[1749710678997,2.01211,2774.1,2774.0,0.0054094]
[1749710679196,2.01211,2774.1,2774.0,16.7974094]
[1749710679494,0.72094,2773.6,2773.5,3.8392]
[1749710679702,0.72094,2773.6,2773.5,25.0652]
[1749710679999,0.72094,2773.6,2773.5,65.8652]
[1749710681495,0.72094,2773.6,2773.5,3.2078]
[1749710681794,0.72094,2773.6,2773.5,24.4358]
[1749710683295,0.72094,2773.6,2773.5,7.6428]
[1749710683596,0.72094,2773.6,2773.5,24.4368]
[1749710684100,0.72094,2773.6,2773.5,7.6428]
[1749710684298,0.72094,2773.6,2773.5,24.4368]
[1749710684899,0.72093,2773.7,2773.5,24.4368]
[1749710685194,0.8291,2773.8,2773.5,24.4368]
[1749710685399,1.55,2773.8,2773.5,25.15776]
[1749710685600,0.72091,2773.7,2773.5,25.15776]
[1749710685801,1.55,2773.8,2773.6,0.625]
[1749710686301,0.72091,2773.7,2773.6,0.625]
[1749710687403,0.72091,2773.7,2773.6,21.854]
[1749710687696,0.72094,2773.6,2773.5,3.2078]
[1749710688102,0.72094,2773.6,2773.5,24.4368]
[1749710689599,0.72093,2773.7,2773.5,24.4368]
[1749710689799,0.72094,2773.6,2773.5,24.4368]
[1749710690399,0.72093,2773.7,2773.5,25.15775]
[1749710690600,0.8291,2773.8,2773.5,25.15775]
[1749710690601,0.8291,2773.8,2773.5,24.4368]
[1749710691093,0.8911172,2773.8,2773.7,0.72091]
[1749710691899,0.8911172,2773.8,2773.7,2.56601]
[1749710693098,0.8911172,2773.8,2773.7,1.8451]
[1749710693299,0.8911172,2773.8,2773.7,2.56601]
[1749710693501,1.6120072,2773.8,2773.7,1.8451]
[1749710693805,0.8911172,2773.8,2773.7,1.31681]
[1749710694005,0.8911172,2773.8,2773.7,0.5959]
[1749710694205,0.8911172,2773.8,2773.7,21.228]
[1749710694406,1.6120172,2773.8,2773.7,21.228]
[1749710695202,0.72091,2773.7,2773.6,40.8]
[1749710695402,0.72091,2773.7,2773.6,62.028]
[1749710697008,0.72091,2773.7,2773.6,21.228]
[1749710698211,1.00931,2773.7,2773.6,21.228]
[1749710699513,0.72094,2773.6,2773.5,44.0078]
[1749710699908,0.72094,2773.6,2773.5,65.2328]
[1749710700213,2.63764,2773.6,2773.5,65.2328]
[1749710700914,2.63764,2773.6,2773.5,44.0078]
[1749710701117,2.63764,2773.6,2773.5,3.2078]
[1749710701316,2.63764,2773.6,2773.3,0.0054094]
[1749710701317,0.72099,2773.4,2773.3,0.0054094]
[1749710701525,0.72099,2773.4,2773.3,21.2304094]
[1749710701815,0.72099,2773.4,2773.3,4.4384094]
[1749710702024,0.72099,2773.4,2773.3,21.2304094]
[1749710702219,0.72099,2773.4,2773.3,0.0054094]
[1749710702522,0.72107,2773.1,2773.0,4.433]
[1749710702719,0.7212,2772.6,2772.5,3.2078]
[1749710703025,3.92886,2773.2,2772.9,0.7211]
[1749710703220,3.92886,2773.2,2773.0,21.225]
[1749710703522,0.72107,2773.1,2773.0,21.225]
[1749710704120,0.72107,2773.1,2773.0,21.227]
[1749710704321,1.95637,2773.1,2773.0,21.227]
[1749710705229,0.72112,2772.9,2772.8,0.00360628]
[1749710705828,2.49882,2772.9,2772.8,21.23060628]
[1749710707228,2.49882,2772.9,2772.8,21.22960628]
[1749710709432,2.49882,2772.9,2772.8,0.00360628]
[1749710709625,2.49882,2772.9,2772.8,21.23060628]
[1749710709925,2.49882,2772.9,2772.8,0.00360628]
[1749710710129,5.70662,2772.9,2772.8,0.00360628]
[1749710710526,5.70662,2772.9,2772.8,16.79760628]
[1749710712426,2.49882,2772.9,2772.8,16.79760628]
[1749710713531,5.70662,2772.9,2772.8,16.79760628]
[1749710713729,2.49882,2772.9,2772.8,16.79760628]
[1749710714329,2.49882,2772.9,2772.8,0.00360628]
[1749710714529,2.49882,2772.9,2772.8,16.79760628]
[1749710715723,5.70662,2772.9,2772.8,0.00360628]
[1749710716429,5.70662,2772.9,2772.8,16.79760628]
[1749710716624,5.70662,2772.9,2772.8,0.00360628]
[1749710716831,0.72125,2772.4,2772.3,21.8]
[1749710717234,0.72125,2772.4,2772.3,43.029]
[1749710717726,0.72125,2772.4,2772.3,21.8]
[1749710718028,0.72125,2772.4,2772.3,43.029]
[1749710718231,1.97755,2772.4,2772.3,43.029]
[1749710718723,1.97755,2772.4,2772.3,21.8]
[1749710718932,1.97755,2772.4,2772.3,43.03]
[1749710720334,1.97755,2772.4,2772.3,4.435]
[1749710720627,0.7213,2772.2,2772.1,3.2078]
[1749710720930,0.7213,2772.2,2772.1,24.4378]
[1749710721126,0.7213,2772.2,2772.1,3.2078]
[1749710721332,5.1096,2772.2,2772.1,4.435]
[1749710721526,5.1096,2772.2,2772.1,21.23]
[1749710721831,0.72143,2771.8,2771.7,40.8]
[1749710722032,3.2078,2772.2,2772.0,0.72133]
[1749710722330,3.9291,2772.2,2772.1,16.796]
[1749710725032,5.1156,2772.2,2772.1,16.796]
[1749710725729,0.72141,2771.8,2771.7,40.8]
[1749710725934,0.72141,2771.8,2771.7,62.031]
[1749710726431,3.2078,2772.2,2771.7,62.031]
[1749710726734,0.72134,2772.1,2771.7,63.1996]
[1749710727136,0.72136,2772.0,2771.8,1.94569]
[1749710727530,0.72136,2772.0,2771.8,1.2243]
[1749710727932,0.72138,2771.9,2771.8,1.2243]
[1749710728639,3.2078,2772.2,2771.8,1.2243]
[1749710728835,0.7214,2771.9,2771.7,62.75241]
[1749710729333,3.2078,2772.2,2771.7,62.031]
[1749710729538,0.72136,2772.0,2771.7,62.75242]
[1749710729841,0.72136,2772.0,2771.8,21.227]
[1749710731144,0.5411,2772.0,2771.9,21.227]
[1749710731432,1.26247,2772.0,2771.9,21.227]
[1749710731638,0.5411,2772.0,2771.9,21.227]
[1749710732241,1.26245,2772.0,2771.9,21.227]
[1749710732641,1.26245,2772.0,2771.7,41.52142]
[1749710732839,0.72138,2771.9,2771.8,21.227]
[1749710733046,0.72141,2771.8,2771.7,40.8]
[1749710733340,0.72141,2771.8,2771.7,62.026]
[1749710734246,0.5411,2772.0,2771.9,0.72138]
[1749710734539,0.5411,2772.0,2771.9,3.92918]
[1749710734540,0.8297,2772.0,2771.9,3.92918]
[1749710735236,0.8297,2772.0,2771.9,3.2078]
[1749710735441,0.8297,2772.0,2771.9,3.92918]
[1749710736042,0.8917172,2772.0,2771.9,3.92918]
[1749710736242,0.8917172,2772.0,2771.9,3.2078]
[1749710736442,1.6130672,2772.0,2771.8,0.72139]
[1749710736939,0.8917172,2772.0,2771.7,21.227]
[1749710737134,0.72142,2771.8,2771.6,3.8071]
[1749710737332,0.72142,2771.8,2771.7,21.226]
[1749710737535,0.72143,2771.7,2771.6,3.8071]
[1749710737735,0.72142,2771.8,2771.6,25.0331]
[1749710738142,1.3116,2771.9,2771.6,25.75454]
[1749710738343,0.8971266,2772.0,2771.6,25.0331]
[1749710738542,1.6184966,2772.0,2771.7,0.72143]
[1749710738742,0.72138,2771.9,2771.6,25.75454]
[1749710739644,0.72142,2771.8,2771.6,25.75454]
[1749710739842,0.7214,2771.9,2771.6,25.75454]
[1749710740043,0.72141,2771.8,2771.6,25.75454]
[1749710740546,0.8971266,2772.0,2771.6,25.75454]
[1749710740547,0.72139,2771.9,2771.6,25.75454]
[1749710740841,0.72141,2771.8,2771.6,25.75454]
[1749710741147,0.8971266,2772.0,2771.6,25.75454]
[1749710741645,0.72142,2771.8,2771.6,25.75454]
[1749710741838,0.7214,2771.9,2771.6,25.75454]
[1749710742044,1.6184966,2772.0,2771.6,25.0331]
[1749710742244,1.6184966,2772.0,2771.8,0.7214]
[1749710742544,1.6184966,2772.0,2771.9,16.793]
[1749710742933,0.8971266,2772.0,2771.9,17.51438]
[1749710743141,1.95409,2772.7,2772.4,0.72125]
[1749710743440,1.2329,2772.7,2772.5,16.792]
[1749710743644,1.95409,2772.7,2772.5,16.792]
[1749710743945,0.7212,2772.6,2772.5,16.792]
[1749710744238,1.95408,2772.7,2772.5,16.792]
[1749710744438,0.0054094,2772.8,2772.7,0.72117]
[1749710744748,0.0054094,2772.8,2772.6,0.72118]
[1749710744945,0.0054094,2772.8,2772.5,19.9998]
[1749710745135,0.0054094,2772.8,2772.6,21.224]
[1749710745339,0.0054094,2772.8,2772.7,62.024]
[1749710745340,2.6061594,2772.8,2772.7,62.024]
[1749710745540,2.5021094,2772.8,2772.3,0.5968]
[1749710745844,0.72117,2772.7,2772.6,4.432]
[1749710746046,1.96447,2772.7,2772.6,4.432]
[1749710748849,0.72117,2772.7,2772.6,4.432]
[1749710750140,0.7831872,2772.7,2772.6,4.432]
[1749710751149,0.0620172,2772.7,2772.6,4.432]
[1749710751451,0.7831872,2772.7,2772.6,4.432]
[1749710752946,0.0620172,2772.7,2772.6,4.432]
[1749710753147,0.7831872,2772.7,2772.6,4.432]
[1749710753648,0.0620172,2772.7,2772.2,3.92908]
[1749710753850,0.72123,2772.5,2772.3,21.94028]
[1749710754045,1.9783972,2772.7,2772.3,21.219]
[1749710754246,1.9783972,2772.7,2772.4,40.8]
[1749710754446,0.7831972,2772.7,2772.4,40.8]
[1749710754747,0.7212,2772.6,2772.5,3.2078]
[1749710754950,0.7832072,2772.7,2772.5,3.2078]
[1749710755149,0.7832072,2772.7,2772.5,3.92902]
[1749710756346,0.7832072,2772.7,2772.5,3.2078]
[1749710756547,0.7832072,2772.7,2772.6,16.786]
[1749710757549,0.72122,2772.5,2772.4,40.8]
[1749710757749,0.72122,2772.5,2772.4,57.586]
[1749710758155,0.72122,2772.5,2772.4,62.013]
[1749710758744,0.72122,2772.5,2772.4,4.427]
[1749710758951,0.72134,2772.1,2771.8,3.92919]
[1749710759157,1.1801,2772.4,2771.9,16.785]